[Event "*** Titled Tuesday Blitz"]
[Site "Chess.com"]
[Date "2020.04.28"]
[Round "1"]
[White "murtas73"]
[Black "r31415"]
[Result "0-1"]
[WhiteElo "2615"]
[BlackElo "2332"]
[TimeControl "180+1"]
[EndTime "10:04:07 PDT"]
[Termination "r31415 won by resignation"]

1. d4 {[%clk 0:02:59.1]} 1... d6 {[%clk 0:02:59.5]} 2. e4 {[%clk 0:02:54.3]}
2... Nf6 {[%clk 0:02:59.4]} 3. Nc3 {[%clk 0:02:52.5]} 3... g6 {[%clk 0:02:59.6]}
4. g3 {[%clk 0:02:50.3]} 4... Bg7 {[%clk 0:02:59.1]} 5. Bg2 {[%clk 0:02:51.2]}
5... O-O {[%clk 0:02:58.5]} 6. Nge2 {[%clk 0:02:50.8]} 6... e5 {[%clk
0:02:58.2]} 7. h3 {[%clk 0:02:49.4]} 7... c6 {[%clk 0:02:58.1]} 8. a4 {[%clk
0:02:45.6]} 8... a5 {[%clk 0:02:57.8]} 9. Be3 {[%clk 0:02:44.2]} 9... Na6 {[%clk
0:02:54.2]} 10. O-O {[%clk 0:02:43.3]} 10... Qc7 {[%clk 0:02:53.3]} 11. Qd2
{[%clk 0:02:42.3]} 11... Be6 {[%clk 0:02:52.6]} 12. Rad1 {[%clk 0:02:39.7]}
12... Nb4 {[%clk 0:02:52.6]} 13. g4 {[%clk 0:02:38.4]} 13... Bc4 {[%clk
0:02:52.1]} 14. f4 {[%clk 0:02:32.6]} 14... Rfe8 {[%clk 0:02:35.6]} 15. f5
{[%clk 0:02:29.2]} 15... d5 {[%clk 0:02:28.1]} 16. dxe5 {[%clk 0:02:24.6]} 16...
Qxe5 {[%clk 0:02:26.5]} 17. Bf4 {[%clk 0:02:18.7]} 17... Qe7 {[%clk 0:02:18]}
18. e5 {[%clk 0:02:18.3]} 18... Bxe2 {[%clk 0:02:10.2]} 19. Qxe2 {[%clk
0:01:59.1]} 19... Nd7 {[%clk 0:02:10.1]} 20. f6 {[%clk 0:01:54.1]} 20... Bxf6
{[%clk 0:02:05.6]} 21. exf6 {[%clk 0:01:48]} 21... Qxe2 {[%clk 0:02:05.1]} 22.
Nxe2 {[%clk 0:01:47.5]} 22... Rxe2 {[%clk 0:02:06]} 23. c3 {[%clk 0:01:47]}
23... Na6 {[%clk 0:01:58.3]} 24. Rf2 {[%clk 0:01:45.9]} 24... Rae8 {[%clk
0:01:56]} 25. Rff1 {[%clk 0:01:44.5]} 25... Rxb2 {[%clk 0:01:51.1]} 26. Rd2
{[%clk 0:01:45.4]} 26... Rxd2 {[%clk 0:01:40.2]} 27. g5 {[%clk 0:01:46.3]} 27...
Ra2 {[%clk 0:01:37.1]} 28. Bd2 {[%clk 0:01:47.2]} 28... Rxd2 {[%clk 0:01:36.5]}
0-1

[Event "*** Titled Tuesday Blitz"]
[Site "Chess.com"]
[Date "2020.04.28"]
[Round "1"]
[White "Infernal_XaM"]
[Black "pichonazo"]
[Result "1-0"]
[WhiteElo "2924"]
[BlackElo "2453"]
[TimeControl "180+1"]
[EndTime "10:04:09 PDT"]
[Termination "Infernal_XaM won by resignation"]

1. d4 {[%clk 0:03:00.9]} 1... Nf6 {[%clk 0:02:55.6]} 2. c4 {[%clk 0:03:01.8]}
2... g6 {[%clk 0:02:55.3]} 3. Nc3 {[%clk 0:03:02.3]} 3... d5 {[%clk 0:02:55.7]}
4. cxd5 {[%clk 0:03:01.1]} 4... Nxd5 {[%clk 0:02:56.6]} 5. e4 {[%clk 0:03:01.1]}
5... Nxc3 {[%clk 0:02:56.3]} 6. bxc3 {[%clk 0:03:01.8]} 6... Bg7 {[%clk
0:02:56.5]} 7. Qa4+ {[%clk 0:03:00.4]} 7... c6 {[%clk 0:02:55]} 8. Nf3 {[%clk
0:02:59.3]} 8... O-O {[%clk 0:02:55.3]} 9. Be3 {[%clk 0:02:59.1]} 9... c5 {[%clk
0:02:55.4]} 10. Rc1 {[%clk 0:02:55.9]} 10... Nc6 {[%clk 0:02:52.1]} 11. d5
{[%clk 0:02:54.9]} 11... Ne5 {[%clk 0:02:51.5]} 12. Nxe5 {[%clk 0:02:54.4]}
12... Bxe5 {[%clk 0:02:52.2]} 13. Be2 {[%clk 0:02:51.4]} 13... b6 {[%clk
0:02:46.4]} 14. f4 {[%clk 0:02:48.6]} 14... Bd7 {[%clk 0:02:43.1]} 15. Qc2
{[%clk 0:02:46]} 15... Bg7 {[%clk 0:02:43.1]} 16. c4 {[%clk 0:02:45.9]} 16... e6
{[%clk 0:02:39.9]} 17. O-O {[%clk 0:02:43.8]} 17... exd5 {[%clk 0:02:34.6]} 18.
cxd5 {[%clk 0:02:42.6]} 18... Rc8 {[%clk 0:02:34.2]} 19. e5 {[%clk 0:02:38.5]}
19... c4 {[%clk 0:02:32.3]} 20. a4 {[%clk 0:02:34]} 20... Bf5 {[%clk 0:02:31.4]}
21. Qd2 {[%clk 0:02:33.7]} 21... c3 {[%clk 0:02:29.5]} 22. Qd4 {[%clk
0:02:31.2]} 22... Rc5 {[%clk 0:02:19.2]} 23. d6 {[%clk 0:02:23.8]} 23... c2
{[%clk 0:02:16.4]} 24. g4 {[%clk 0:02:20.7]} 24... Be6 {[%clk 0:02:09.5]} 25.
Qd2 {[%clk 0:02:19.8]} 25... Qc8 {[%clk 0:01:56.2]} 26. h3 {[%clk 0:02:06.2]}
26... h5 {[%clk 0:01:51.8]} 27. gxh5 {[%clk 0:02:03.7]} 27... Bxh3 {[%clk
0:01:51.2]} 28. Rf2 {[%clk 0:02:03]} 28... Bf5 {[%clk 0:01:45.5]} 29. Bxc5
{[%clk 0:02:01.7]} 29... Qxc5 {[%clk 0:01:46.4]} 30. Bd3 {[%clk 0:02:01.2]}
30... Bxd3 {[%clk 0:01:36.9]} 31. Qxd3 {[%clk 0:02:00.9]} 31... Qb4 {[%clk
0:01:33.1]} 32. Rcxc2 {[%clk 0:01:57.6]} 32... Qxa4 {[%clk 0:01:29.8]} 33. d7
{[%clk 0:01:53.5]} 1-0

[Event "*** Titled Tuesday Blitz"]
[Site "Chess.com"]
[Date "2020.04.28"]
[Round "1"]
[White "ManuDavid2910"]
[Black "Shuvatkin_Vladimir"]
[Result "1-0"]
[WhiteElo "2637"]
[BlackElo "2310"]
[TimeControl "180+1"]
[EndTime "10:04:12 PDT"]
[Termination "ManuDavid2910 won by resignation"]

1. e4 {[%clk 0:03:00.9]} 1... e6 {[%clk 0:02:59.1]} 2. Nf3 {[%clk 0:03:01.1]}
2... d5 {[%clk 0:02:56.9]} 3. Nc3 {[%clk 0:03:02]} 3... dxe4 {[%clk 0:02:57]} 4.
Nxe4 {[%clk 0:03:02.9]} 4... c5 {[%clk 0:02:57.4]} 5. Bb5+ {[%clk 0:03:02.7]}
5... Bd7 {[%clk 0:02:57]} 6. Qe2 {[%clk 0:03:02.9]} 6... a6 {[%clk 0:02:56.6]}
7. Bxd7+ {[%clk 0:03:01.9]} 7... Qxd7 {[%clk 0:02:56.8]} 8. O-O {[%clk
0:03:02.1]} 8... Nc6 {[%clk 0:02:56.7]} 9. Rd1 {[%clk 0:03:01.8]} 9... Be7
{[%clk 0:02:56.8]} 10. d4 {[%clk 0:02:58.4]} 10... cxd4 {[%clk 0:02:56.5]} 11.
c3 {[%clk 0:02:58.5]} 11... Nf6 {[%clk 0:02:55.2]} 12. Nxd4 {[%clk 0:02:48.4]}
12... Nxd4 {[%clk 0:02:51.1]} 13. Rxd4 {[%clk 0:02:47.9]} 13... Qc6 {[%clk
0:02:51.3]} 14. Bg5 {[%clk 0:02:45.6]} 14... Nxe4 {[%clk 0:02:44.6]} 15. Bxe7
{[%clk 0:02:44.7]} 15... Nxc3 {[%clk 0:02:34.2]} 16. bxc3 {[%clk 0:02:44.1]}
16... Kxe7 {[%clk 0:02:33.9]} 17. Qg4 {[%clk 0:02:41.8]} 17... Rhd8 {[%clk
0:02:17.8]} 18. Qg5+ {[%clk 0:02:29.6]} 18... Ke8 {[%clk 0:02:14.8]} 19. Qxg7
{[%clk 0:02:28.8]} 19... Rxd4 {[%clk 0:02:08.2]} 20. cxd4 {[%clk 0:02:27.8]}
20... Rd8 {[%clk 0:02:06.2]} 21. Qxh7 {[%clk 0:02:24.7]} 21... Qc3 {[%clk
0:01:47.1]} 22. Qg8+ {[%clk 0:02:23.3]} 22... Ke7 {[%clk 0:01:46]} 23. Qg5+
{[%clk 0:02:23]} 23... Ke8 {[%clk 0:01:44.5]} 24. Rc1 {[%clk 0:02:17.4]} 24...
Rxd4 {[%clk 0:01:20.7]} 25. h4 {[%clk 0:02:07.7]} 25... Qd2 {[%clk 0:01:09.7]}
26. Rc8+ {[%clk 0:02:07]} 26... Rd8 {[%clk 0:01:06.7]} 27. Qxd2 {[%clk
0:02:06.4]} 1-0

[Event "*** Titled Tuesday Blitz"]
[Site "Chess.com"]
[Date "2020.04.28"]
[Round "1"]
[White "Frogo47"]
[Black "zane33"]
[Result "1-0"]
[WhiteElo "2482"]
[BlackElo "1982"]
[TimeControl "180+1"]
[EndTime "10:04:12 PDT"]
[Termination "Frogo47 won by resignation"]

1. e4 {[%clk 0:03:00]} 1... e5 {[%clk 0:02:58.8]} 2. Nf3 {[%clk 0:02:59.7]} 2...
Nc6 {[%clk 0:02:57.6]} 3. Bb5 {[%clk 0:02:59.5]} 3... Bc5 {[%clk 0:02:56.2]} 4.
c3 {[%clk 0:02:57.4]} 4... Nf6 {[%clk 0:02:54.4]} 5. O-O {[%clk 0:02:57.3]} 5...
O-O {[%clk 0:02:51.5]} 6. d4 {[%clk 0:02:55]} 6... Bb6 {[%clk 0:02:49.4]} 7. Bg5
{[%clk 0:02:26.6]} 7... h6 {[%clk 0:02:40]} 8. Bh4 {[%clk 0:02:22.9]} 8... exd4
{[%clk 0:01:45.1]} 9. Qc1 {[%clk 0:02:08.3]} 9... d6 {[%clk 0:01:36.6]} 10. Bxc6
{[%clk 0:02:04.1]} 10... bxc6 {[%clk 0:01:36.1]} 11. cxd4 {[%clk 0:02:01.8]}
11... Qe7 {[%clk 0:01:18.3]} 12. e5 {[%clk 0:01:42.6]} 12... dxe5 {[%clk
0:00:56]} 13. dxe5 {[%clk 0:01:39.3]} 1-0

[Event "*** Titled Tuesday Blitz"]
[Site "Chess.com"]
[Date "2020.04.28"]
[Round "1"]
[White "crazy_machine"]
[Black "JLRHei"]
[Result "1-0"]
[WhiteElo "2603"]
[BlackElo "2272"]
[TimeControl "180+1"]
[EndTime "10:04:13 PDT"]
[Termination "crazy_machine won by resignation"]

1. d4 {[%clk 0:03:00.2]} 1... Nf6 {[%clk 0:02:59.9]} 2. Nc3 {[%clk 0:03:00.7]}
2... d5 {[%clk 0:02:58.5]} 3. Bf4 {[%clk 0:03:01.2]} 3... e6 {[%clk 0:02:56.8]}
4. Nb5 {[%clk 0:03:01.2]} 4... Na6 {[%clk 0:02:55.6]} 5. e3 {[%clk 0:03:00.8]}
5... c6 {[%clk 0:02:56]} 6. Nc3 {[%clk 0:03:01]} 6... Bd6 {[%clk 0:02:56.4]} 7.
Nf3 {[%clk 0:02:54.5]} 7... Bxf4 {[%clk 0:02:49.4]} 8. exf4 {[%clk 0:02:55.4]}
8... O-O {[%clk 0:02:48.9]} 9. Ne5 {[%clk 0:02:33.6]} 9... c5 {[%clk 0:02:44.8]}
10. Bxa6 {[%clk 0:02:30.9]} 10... bxa6 {[%clk 0:02:45.7]} 11. dxc5 {[%clk
0:02:31.5]} 11... Qa5 {[%clk 0:02:33.3]} 12. Qd4 {[%clk 0:02:27.2]} 12... Bd7
{[%clk 0:02:29.2]} 13. b4 {[%clk 0:02:22.8]} 13... Qc7 {[%clk 0:02:18.4]} 14.
O-O {[%clk 0:02:21.9]} 14... Rfc8 {[%clk 0:02:13.4]} 15. Nd1 {[%clk 0:01:56.1]}
15... Rab8 {[%clk 0:01:35.3]} 16. Re1 {[%clk 0:01:54.7]} 16... a5 {[%clk
0:01:13]} 17. c3 {[%clk 0:01:54.6]} 17... Qb7 {[%clk 0:01:09.4]} 18. a3 {[%clk
0:01:53.7]} 18... Ne8 {[%clk 0:00:59.3]} 19. Nb2 {[%clk 0:01:44.9]} 19... Nc7
{[%clk 0:00:56]} 20. Nxd7 {[%clk 0:01:44.6]} 1-0

[Event "*** Titled Tuesday Blitz"]
[Site "Chess.com"]
[Date "2020.04.28"]
[Round "1"]
[White "Carnivoras"]
[Black "MacDaddyMac"]
[Result "1-0"]
[WhiteElo "2646"]
[BlackElo "2323"]
[TimeControl "180+1"]
[EndTime "10:04:17 PDT"]
[Termination "Carnivoras won by resignation"]

1. d4 {[%clk 0:02:25.9]} 1... Nf6 {[%clk 0:02:58.8]} 2. Nf3 {[%clk 0:02:25.5]}
2... e6 {[%clk 0:02:58.7]} 3. Bg5 {[%clk 0:02:24.9]} 3... Be7 {[%clk 0:02:58.1]}
4. Nbd2 {[%clk 0:02:24.3]} 4... d5 {[%clk 0:02:57.3]} 5. e3 {[%clk 0:02:24]}
5... b6 {[%clk 0:02:56]} 6. Bd3 {[%clk 0:02:22.6]} 6... Bb7 {[%clk 0:02:56.2]}
7. O-O {[%clk 0:02:23]} 7... Nbd7 {[%clk 0:02:55.6]} 8. h3 {[%clk 0:02:22.9]}
8... Ne4 {[%clk 0:02:55.4]} 9. Bf4 {[%clk 0:02:19.1]} 9... f5 {[%clk 0:02:52.6]}
10. c4 {[%clk 0:02:18.5]} 10... O-O {[%clk 0:02:50.2]} 11. Qc2 {[%clk
0:02:18.3]} 11... c6 {[%clk 0:02:49]} 12. Ne5 {[%clk 0:02:17.9]} 12... Nxe5
{[%clk 0:02:48.7]} 13. Bxe5 {[%clk 0:02:18.8]} 13... Bf6 {[%clk 0:02:44.7]} 14.
Nf3 {[%clk 0:02:18.9]} 14... Ng5 {[%clk 0:02:30]} 15. Nxg5 {[%clk 0:02:01.5]}
15... Bxe5 {[%clk 0:02:30]} 16. Nxe6 {[%clk 0:02:01.2]} 16... Bh2+ {[%clk
0:02:28.9]} 17. Kh1 {[%clk 0:01:59]} 17... Qd6 {[%clk 0:02:25.4]} 18. Nxf8
{[%clk 0:01:59]} 18... Rxf8 {[%clk 0:02:25.1]} 19. cxd5 {[%clk 0:01:49.8]} 19...
f4 {[%clk 0:01:47.3]} 20. dxc6 {[%clk 0:01:19.1]} 20... Bxc6 {[%clk 0:01:32.2]}
21. Bxh7+ {[%clk 0:01:18.6]} 21... Kh8 {[%clk 0:01:31.7]} 22. Be4 {[%clk
0:01:18.5]} 22... f3 {[%clk 0:01:29.3]} 23. Qxc6 {[%clk 0:01:16.3]} 23... fxg2+
{[%clk 0:01:26.7]} 24. Bxg2 {[%clk 0:01:17.2]} 1-0

[Event "*** Titled Tuesday Blitz"]
[Site "Chess.com"]
[Date "2020.04.28"]
[Round "1"]
[White "DinaBelenkaya"]
[Black "blobica"]
[Result "0-1"]
[WhiteElo "2177"]
[BlackElo "2532"]
[TimeControl "180+1"]
[EndTime "10:04:22 PDT"]
[Termination "blobica won by resignation"]

1. e4 {[%clk 0:03:00.9]} 1... c6 {[%clk 0:02:59.1]} 2. d4 {[%clk 0:02:58.4]}
2... d5 {[%clk 0:02:59]} 3. Nc3 {[%clk 0:02:59.1]} 3... dxe4 {[%clk 0:02:58.7]}
4. Nxe4 {[%clk 0:03:00]} 4... Nf6 {[%clk 0:02:58.6]} 5. Nxf6+ {[%clk 0:02:57.9]}
5... exf6 {[%clk 0:02:58]} 6. c3 {[%clk 0:02:56.9]} 6... Bd6 {[%clk 0:02:57.7]}
7. Bd3 {[%clk 0:02:54.1]} 7... O-O {[%clk 0:02:56.9]} 8. Ne2 {[%clk 0:02:54.7]}
8... Re8 {[%clk 0:02:56.8]} 9. Qc2 {[%clk 0:02:52.2]} 9... h5 {[%clk 0:02:55.9]}
10. Be3 {[%clk 0:02:45.6]} 10... Qc7 {[%clk 0:02:54.6]} 11. h3 {[%clk
0:02:43.8]} 11... h4 {[%clk 0:02:51.6]} 12. O-O {[%clk 0:02:40.1]} 12... Nd7
{[%clk 0:02:47.3]} 13. Rae1 {[%clk 0:02:38.8]} 13... Nf8 {[%clk 0:02:46.2]} 14.
c4 {[%clk 0:02:32.1]} 14... Qb8 {[%clk 0:02:26.8]} 15. Nc3 {[%clk 0:02:24.3]}
15... Bd7 {[%clk 0:02:21.5]} 16. Ne4 {[%clk 0:02:23.2]} 16... Bc7 {[%clk
0:02:20.9]} 17. Nc5 {[%clk 0:02:22.9]} 17... Bc8 {[%clk 0:02:13.7]} 18. Bf5
{[%clk 0:02:22.8]} 18... Bxf5 {[%clk 0:02:08]} 19. Qxf5 {[%clk 0:02:23.7]} 19...
Ng6 {[%clk 0:02:07.4]} 20. Bd2 {[%clk 0:02:16.2]} 20... Rxe1 {[%clk 0:01:46.5]}
21. Rxe1 {[%clk 0:02:17.1]} 21... Bd6 {[%clk 0:01:45.6]} 22. Qd7 {[%clk
0:02:05.6]} 22... Bxc5 {[%clk 0:01:41.8]} 23. dxc5 {[%clk 0:02:05.4]} 23... Ne5
{[%clk 0:01:40.7]} 24. b3 {[%clk 0:01:20.7]} 24... Nxd7 {[%clk 0:01:39.2]} 0-1

[Event "*** Titled Tuesday Blitz"]
[Site "Chess.com"]
[Date "2020.04.28"]
[Round "1"]
[White "Hangar-18"]
[Black "DoHoChess"]
[Result "1-0"]
[WhiteElo "2255"]
[BlackElo "2554"]
[TimeControl "180+1"]
[EndTime "10:04:24 PDT"]
[Termination "Hangar-18 won by resignation"]

1. Nf3 {[%clk 0:03:00.5]} 1... d5 {[%clk 0:02:59.2]} 2. b3 {[%clk 0:02:59.2]}
2... c5 {[%clk 0:02:56.9]} 3. Bb2 {[%clk 0:02:59]} 3... Nc6 {[%clk 0:02:57.1]}
4. e3 {[%clk 0:02:59.3]} 4... Nf6 {[%clk 0:02:56.6]} 5. Bb5 {[%clk 0:02:59.2]}
5... Bd7 {[%clk 0:02:55.9]} 6. O-O {[%clk 0:02:58.4]} 6... e6 {[%clk 0:02:55.9]}
7. d3 {[%clk 0:02:53.2]} 7... Bd6 {[%clk 0:02:53.6]} 8. Nbd2 {[%clk 0:02:45.8]}
8... a6 {[%clk 0:02:53.6]} 9. Bxc6 {[%clk 0:02:44.7]} 9... Bxc6 {[%clk
0:02:53.9]} 10. c4 {[%clk 0:02:39.7]} 10... O-O {[%clk 0:02:51.8]} 11. Ne5
{[%clk 0:02:35.4]} 11... Qc7 {[%clk 0:02:47.9]} 12. f4 {[%clk 0:02:35.1]} 12...
Nd7 {[%clk 0:02:47.5]} 13. Nxc6 {[%clk 0:02:29.6]} 13... Qxc6 {[%clk 0:02:47.4]}
14. cxd5 {[%clk 0:02:23.9]} 14... exd5 {[%clk 0:02:05.5]} 15. Qg4 {[%clk
0:02:16.2]} 15... f6 {[%clk 0:02:04.7]} 16. Rf3 {[%clk 0:02:03.4]} 16... Rae8
{[%clk 0:01:58.9]} 17. Raf1 {[%clk 0:01:57.8]} 17... Rf7 {[%clk 0:01:57.2]} 18.
Rh3 {[%clk 0:01:57.9]} 18... Nf8 {[%clk 0:01:56.6]} 19. Rg3 {[%clk 0:01:49.4]}
19... Qd7 {[%clk 0:01:55.8]} 20. Qh5 {[%clk 0:01:43.8]} 20... b5 {[%clk
0:01:52.3]} 21. Qxd5 {[%clk 0:01:41.9]} 21... Qe7 {[%clk 0:01:40.3]} 22. Ne4
{[%clk 0:01:38.1]} 22... Rd8 {[%clk 0:01:21.5]} 23. Bxf6 {[%clk 0:01:32.2]} 1-0

[Event "*** Titled Tuesday Blitz"]
[Site "Chess.com"]
[Date "2020.04.28"]
[Round "1"]
[White "WinstonSilvakov"]
[Black "Unknown_IM"]
[Result "0-1"]
[WhiteElo "2109"]
[BlackElo "2511"]
[TimeControl "180+1"]
[EndTime "10:04:27 PDT"]
[Termination "Unknown_IM won by resignation"]

1. d4 {[%clk 0:02:57]} 1... Nf6 {[%clk 0:02:58.9]} 2. e3 {[%clk 0:02:56.3]} 2...
g6 {[%clk 0:02:57.9]} 3. Bd3 {[%clk 0:02:55.6]} 3... Bg7 {[%clk 0:02:58.6]} 4.
Nd2 {[%clk 0:02:54.5]} 4... d5 {[%clk 0:02:56.4]} 5. f4 {[%clk 0:02:54.3]} 5...
O-O {[%clk 0:02:35.6]} 6. Ngf3 {[%clk 0:02:53.2]} 6... Nbd7 {[%clk 0:02:35.1]}
7. O-O {[%clk 0:02:50.7]} 7... b6 {[%clk 0:02:35.5]} 8. Ne5 {[%clk 0:02:47.3]}
8... Bb7 {[%clk 0:02:35.1]} 9. Qf3 {[%clk 0:02:33]} 9... c5 {[%clk 0:02:31.8]}
10. c3 {[%clk 0:02:31.4]} 10... Rc8 {[%clk 0:02:29.1]} 11. g4 {[%clk 0:02:28.8]}
11... cxd4 {[%clk 0:02:22.7]} 12. exd4 {[%clk 0:02:27.5]} 12... Rc7 {[%clk
0:02:18.2]} 13. Kh1 {[%clk 0:02:17.8]} 13... Qa8 {[%clk 0:02:16.9]} 14. Kg1
{[%clk 0:02:15.3]} 14... Ne4 {[%clk 0:02:16.6]} 15. Nxd7 {[%clk 0:02:05.6]}
15... Rxd7 {[%clk 0:02:15.8]} 16. Qe3 {[%clk 0:02:02.7]} 16... f5 {[%clk
0:02:09.8]} 17. gxf5 {[%clk 0:01:59.4]} 17... gxf5 {[%clk 0:02:09.7]} 18. Nf3
{[%clk 0:01:55.8]} 18... Kh8 {[%clk 0:01:59.7]} 19. Kh1 {[%clk 0:01:49]} 19...
Bf6 {[%clk 0:01:54.3]} 20. Bd2 {[%clk 0:01:49]} 20... Rg8 {[%clk 0:01:53.8]} 21.
Rg1 {[%clk 0:01:48.4]} 21... e6 {[%clk 0:01:53.2]} 22. Ne5 {[%clk 0:01:45.9]}
22... Bxe5 {[%clk 0:01:52.4]} 23. fxe5 {[%clk 0:01:44.7]} 23... Rdg7 {[%clk
0:01:51.8]} 24. Rxg7 {[%clk 0:01:41.8]} 24... Rxg7 {[%clk 0:01:52.7]} 25. Rg1
{[%clk 0:01:40.1]} 25... Qg8 {[%clk 0:01:52.4]} 26. Bxe4 {[%clk 0:01:25.3]}
26... dxe4 {[%clk 0:01:49.7]} 27. Be1 {[%clk 0:01:13.7]} 27... f4 {[%clk
0:01:47.3]} 28. Rxg7 {[%clk 0:01:10.2]} 28... Qxg7 {[%clk 0:01:48.2]} 0-1

[Event "*** Titled Tuesday Blitz"]
[Site "Chess.com"]
[Date "2020.04.28"]
[Round "1"]
[White "profofchess"]
[Black "Gareth-Bale11"]
[Result "0-1"]
[WhiteElo "2399"]
[BlackElo "2749"]
[TimeControl "180+1"]
[EndTime "10:04:38 PDT"]
[Termination "Gareth-Bale11 won by resignation"]

1. e4 {[%clk 0:03:00.9]} 1... c5 {[%clk 0:02:58.1]} 2. Nf3 {[%clk 0:03:00.6]}
2... Nc6 {[%clk 0:02:57.1]} 3. Bb5 {[%clk 0:02:59.5]} 3... g6 {[%clk 0:02:55.8]}
4. O-O {[%clk 0:02:59.2]} 4... Bg7 {[%clk 0:02:55.9]} 5. Re1 {[%clk 0:02:59.9]}
5... e5 {[%clk 0:02:54.3]} 6. Bxc6 {[%clk 0:02:59.2]} 6... dxc6 {[%clk
0:02:55.2]} 7. d3 {[%clk 0:02:56.8]} 7... Qc7 {[%clk 0:02:55]} 8. a4 {[%clk
0:02:56.7]} 8... Nf6 {[%clk 0:02:49.8]} 9. a5 {[%clk 0:02:54.9]} 9... Rb8 {[%clk
0:02:47.3]} 10. Nbd2 {[%clk 0:02:51.1]} 10... Be6 {[%clk 0:02:44.8]} 11. Nc4
{[%clk 0:02:42.1]} 11... Nd7 {[%clk 0:02:28.2]} 12. Ng5 {[%clk 0:02:39.8]} 12...
Bxc4 {[%clk 0:02:27.6]} 13. dxc4 {[%clk 0:02:39.9]} 13... O-O {[%clk 0:02:25.3]}
14. Bd2 {[%clk 0:02:36.3]} 14... h6 {[%clk 0:02:18.8]} 15. Nf3 {[%clk
0:02:35.7]} 15... Rfd8 {[%clk 0:02:19.4]} 16. Qc1 {[%clk 0:02:31.4]} 16... Kh7
{[%clk 0:02:17.6]} 17. Be3 {[%clk 0:02:24.7]} 17... Qd6 {[%clk 0:02:10.7]} 18.
Rd1 {[%clk 0:02:21.9]} 18... Qe6 {[%clk 0:02:08.6]} 19. b3 {[%clk 0:02:21.8]}
19... Nf6 {[%clk 0:02:08.1]} 20. Bxc5 {[%clk 0:02:11.7]} 20... Rxd1+ {[%clk
0:01:58.7]} 21. Qxd1 {[%clk 0:02:10.9]} 21... b6 {[%clk 0:01:45.7]} 22. Qd6
{[%clk 0:01:59.8]} 22... Qe8 {[%clk 0:01:45.1]} 23. axb6 {[%clk 0:01:51.7]}
23... Nxe4 {[%clk 0:01:33.3]} 24. Qe7 {[%clk 0:01:45.8]} 24... Nxc5 {[%clk
0:01:27.8]} 25. Qxc5 {[%clk 0:01:41.4]} 25... axb6 {[%clk 0:01:26.5]} 26. Qd6
{[%clk 0:01:22]} 26... Rd8 {[%clk 0:01:24.3]} 27. Qc7 {[%clk 0:01:14.5]} 27...
e4 {[%clk 0:01:23.2]} 0-1

[Event "*** Titled Tuesday Blitz"]
[Site "Chess.com"]
[Date "2020.04.28"]
[Round "1"]
[White "renehp"]
[Black "ChessAintFun"]
[Result "0-1"]
[WhiteElo "2413"]
[BlackElo "2774"]
[TimeControl "180+1"]
[EndTime "10:04:41 PDT"]
[Termination "ChessAintFun won by resignation"]

1. e4 {[%clk 0:02:59.5]} 1... c5 {[%clk 0:02:46.8]} 2. Nf3 {[%clk 0:02:56.5]}
2... Nc6 {[%clk 0:02:46]} 3. d4 {[%clk 0:02:54]} 3... cxd4 {[%clk 0:02:46.9]} 4.
Nxd4 {[%clk 0:02:54.9]} 4... e6 {[%clk 0:02:41.3]} 5. Nc3 {[%clk 0:02:54.2]}
5... Qc7 {[%clk 0:02:39.6]} 6. Be3 {[%clk 0:02:52.9]} 6... a6 {[%clk 0:02:37.2]}
7. Bd3 {[%clk 0:02:51.2]} 7... Nf6 {[%clk 0:02:36.4]} 8. O-O {[%clk 0:02:51.1]}
8... b5 {[%clk 0:02:36.1]} 9. Nxc6 {[%clk 0:02:45.1]} 9... dxc6 {[%clk
0:02:25.4]} 10. f4 {[%clk 0:02:38.9]} 10... Bb7 {[%clk 0:02:15.2]} 11. e5 {[%clk
0:02:34]} 11... Nd5 {[%clk 0:02:15.4]} 12. Nxd5 {[%clk 0:02:33.9]} 12... cxd5
{[%clk 0:02:16.2]} 13. Bd4 {[%clk 0:02:31.1]} 13... Bc5 {[%clk 0:02:12.4]} 14.
c3 {[%clk 0:02:29.1]} 14... Qb6 {[%clk 0:02:12]} 15. Kh1 {[%clk 0:02:25.6]}
15... O-O {[%clk 0:02:03.9]} 16. Bxc5 {[%clk 0:02:18.1]} 16... Qxc5 {[%clk
0:02:03.3]} 17. f5 {[%clk 0:02:18.2]} 17... exf5 {[%clk 0:02:00.6]} 18. Rxf5
{[%clk 0:02:18.2]} 18... g6 {[%clk 0:01:50.4]} 19. Rf4 {[%clk 0:01:54.9]} 19...
Rae8 {[%clk 0:01:48.2]} 20. Qe2 {[%clk 0:01:50.7]} 20... Re7 {[%clk 0:01:42.5]}
21. Re1 {[%clk 0:01:40.1]} 21... Rfe8 {[%clk 0:01:41.8]} 22. h3 {[%clk
0:01:39.7]} 22... Qc7 {[%clk 0:01:41.6]} 23. Ref1 {[%clk 0:01:31.4]} 23... Rxe5
{[%clk 0:01:38.4]} 24. Rxf7 {[%clk 0:01:20.4]} 24... Qxf7 {[%clk 0:01:39.3]} 25.
Rxf7 {[%clk 0:01:17.9]} 25... Rxe2 {[%clk 0:01:38.2]} 26. Rxb7 {[%clk
0:01:15.7]} 26... Rxb2 {[%clk 0:01:38.1]} 27. Rd7 {[%clk 0:01:13.8]} 27... Re1+
{[%clk 0:01:35.8]} 28. Kh2 {[%clk 0:01:13.3]} 28... Rd1 {[%clk 0:01:36.5]} 29.
Rxd5 {[%clk 0:01:12.9]} 29... Rbd2 {[%clk 0:01:35.9]} 0-1

[Event "*** Titled Tuesday Blitz"]
[Site "Chess.com"]
[Date "2020.04.28"]
[Round "1"]
[White "Sjakkerntobi"]
[Black "GMMatamoros"]
[Result "0-1"]
[WhiteElo "2186"]
[BlackElo "2534"]
[TimeControl "180+1"]
[EndTime "10:04:42 PDT"]
[Termination "GMMatamoros won by resignation"]

1. e4 {[%clk 0:03:00.9]} 1... c5 {[%clk 0:02:57.6]} 2. Nf3 {[%clk 0:03:00.7]}
2... Nc6 {[%clk 0:02:52.4]} 3. d4 {[%clk 0:02:59.7]} 3... cxd4 {[%clk
0:02:51.5]} 4. Nxd4 {[%clk 0:03:00.6]} 4... e5 {[%clk 0:02:51.5]} 5. Nb5 {[%clk
0:03:00.5]} 5... d6 {[%clk 0:02:51.7]} 6. a4 {[%clk 0:02:59.4]} 6... Be7 {[%clk
0:02:47.6]} 7. N1c3 {[%clk 0:02:55.6]} 7... a6 {[%clk 0:02:45.2]} 8. Na3 {[%clk
0:02:55.3]} 8... Nf6 {[%clk 0:02:45]} 9. Bg5 {[%clk 0:02:52.9]} 9... Nxe4 {[%clk
0:02:37.8]} 10. Nxe4 {[%clk 0:02:51.4]} 10... Bxg5 {[%clk 0:02:37.7]} 11. Nxg5
{[%clk 0:02:12.3]} 11... Qxg5 {[%clk 0:02:35.5]} 12. Qxd6 {[%clk 0:02:11.5]}
12... Be6 {[%clk 0:02:21.7]} 13. h4 {[%clk 0:01:52.9]} 13... Qf4 {[%clk
0:02:15.9]} 14. Bd3 {[%clk 0:01:35.5]} 14... Rd8 {[%clk 0:01:56.6]} 15. Qc7
{[%clk 0:01:34]} 15... Qb4+ {[%clk 0:01:47.5]} 16. Ke2 {[%clk 0:00:49.2]} 16...
Rc8 {[%clk 0:01:34.2]} 0-1